[Event "SVK ECo-C Extraliga 2018-19"]
[Site "Slovakia"]
[Date "2018.11.10"]
[Round "1"]
[White "Hros, Roman"]
[Black "Jacko, Vladimir"]
[Result "1-0"]
[ECO "A05"]
[WhiteElo "2191"]
[BlackElo "2330"]
[Annotator "NA"]
[PlyCount "79"]
[EventDate "2018.11.10"]
[EventType "team-tourn"]
[EventCountry "SVK"]
[SourceTitle "playchess.com"]
[Source "ChessBase"]
[SourceQuality "1"]
[WhiteTeam "Liptovska"]
[BlackTeam "Prakovce"]
[TimeControl "40/5400+30:1800+30"]

1. Nf3 {[%emt 0:00:00]} Nf6 {[%emt 0:00:31]} 2. c4 {[%emt 0:00:00]} d6 {[%emt 0:02:51]} 3. d4 {[%emt 0:02:00]} g6 {[%emt 0:00:24]} 4. Nc3 {[%emt 0:00:18]} Bf5 {[%emt 0:00:13]} 5. h3 {[%emt 0:04:36] LiveBook: 92 Games} Bg7 {[%emt 0:10:40] E61: King's Indian: Early deviations for White, including Smyslov System} (5... Ne4 6. Nxe4 Bxe4 7. Ng5 Bf5 8. e4 Bd7 9. Be3 Bg7 10. Qd2 e5 11. Nf3 Nc6 12. d5 Ne7 13. g4 {1-0 (58) Eljanov,P (2706)-Moussard,J (2559) Biel 2018}) 6. g4 {[%emt 0:04:20]} Be6 {[%emt 0:05:57]} 7. Bg2 {[%emt 0:13:42]} c6 {[%emt 0:09:37]} 8. b3 $146 {[%emt 0:04:57]} ({Predecessor:} 8. d5 cxd5 9. cxd5 Bd7 10. Bf4 O-O 11. O-O Na6 12. a3 Nc5 {0-1 (41) Rychlik,H-Szczepanski,H Krakow 1998}) 8... d5 {[%emt 0:09:19]} 9. Ng5 {[%emt 0:10:14]} Bc8 {[%emt 0:01:38]} 10. Bb2 {[%emt 0:21:47]} h6 {[%emt 0:15:40]} 11. Nf3 {[%emt 0:00:19]} Be6 {[%emt 0:02:18]} 12. Ne5 {[%emt 0:05:25]} Nbd7 {[%emt 0:03:23]} 13. f4 {[%emt 0:01:34]} dxc4 {[%emt 0:02:47]} 14. bxc4 {[%emt 0:03:07]} Nb6 {[%emt 0:05:49]} 15. Qd3 {[%emt 0:01:07]} Qc7 {[%emt 0:12:04]} 16. Rc1 {[%emt 0:12:32]} Rd8 {[%emt 0:02:27]} 17. d5 {[%emt 0:02:41]} O-O {[%emt 0:02:56]} 18. e4 {[%emt 0:05:08]} Bc8 {[%emt 0:04:33]} 19. O-O {[%emt 0:02:51]} Nfd7 {[%emt 0:03:34]} 20. Nxd7 {[%emt 0:01:10]} Bxd7 {[%emt 0:00:36]} 21. e5 {[%emt 0:01:07]} Bc8 {[%emt 0:00:57]} 22. Qe2 {[%emt 0:00:53]} cxd5 {[%emt 0:01:01]} 23. cxd5 {[%emt 0:00:16]} Nc4 {[%emt 0:00:42]} 24. Nb5 {[%emt 0:00:42]} Qb6+ {[%emt 0:01:07]} 25. Bd4 {[%emt 0:00:01]} Qxb5 {[%emt 0:00:11]} 26. Qxc4 {[%emt 0:00:06]} Bd7 {[%emt 0:00:51]} 27. Qxb5 {[%emt 0:00:39]} Bxb5 {[%emt 0:00:01]} 28. Rf2 {[%emt 0:00:51]} e6 {[%emt 0:01:12]} 29. d6 {[%emt 0:00:24]} b6 {[%emt 0:00:30]} 30. Bb2 $18 {[%emt 0:00:52]} f6 {[%emt 0:00:34]} 31. Rc7 {[%emt 0:00:47]} fxe5 {[%emt 0:00:30]} 32. Bxe5 {[%emt 0:00:38]} Rd7 {[%emt 0:00:24]} 33. Rxd7 {[%emt 0:00:41]} Bxd7 {[%emt 0:00:01]} 34. Rc2 {[%emt 0:00:25]} Bb5 {[%emt 0:01:00]} 35. Rc7 {[%emt 0:00:31]} Rf7 {[%emt 0:00:07]} 36. Rc8+ {[%emt 0:00:43]} Rf8 {[%emt 0:01:01]} 37. Rc7 {[%emt 0:00:06]} Rf7 {[%emt 0:00:01]} 38. Be4 {[%emt 0:00:24]} g5 {[%emt 0:00:28]} 39. Bh7+ {[%emt 0:00:21]} Kf8 {[%emt 0:00:28]} 40. Rc8+ {[%emt 0:00:11]} 1-0

[Event "SVK ECo-C Extraliga 2018-19"]
[Site "Slovakia"]
[Date "2018.11.10"]
[Round "1"]
[White "Macko, Michal"]
[Black "Kusiak, Matej"]
[Result "0-1"]
[ECO "B07"]
[WhiteElo "2178"]
[BlackElo "2263"]
[Annotator "NA"]
[PlyCount "68"]
[EventDate "2018.11.10"]
[EventType "team-tourn"]
[EventCountry "SVK"]
[SourceTitle "playchess.com"]
[Source "ChessBase"]
[SourceQuality "1"]
[WhiteTeam "Liptovska"]
[BlackTeam "Prakovce"]
[TimeControl "40/5400+30:1800+30"]

1. e4 {[%emt 0:00:00]} d6 {[%emt 0:00:00]} 2. d4 {[%emt 0:00:00]} Nf6 {[%emt 0:00:00]} 3. Nc3 {[%emt 0:00:08]} Nc6 {[%emt 0:01:31]} 4. h3 {[%emt 0:01:26]} e5 {[%emt 0:02:48]} 5. Nf3 {[%emt 0:00:52]} exd4 {[%emt 0:01:22] C42: Petroff Defence: 3 Nxe5 and unusual White 3rd moves} (5... Be7 6. d5 Nb8 7. g3 O-O 8. Bg2 c6 9. dxc6 bxc6 10. O-O Nbd7 11. b3 Nc5 12. Re1 Re8 13. Bb2 {1-0 (142) Ter Sahakyan,S (2574)-Petrosian,T (2654) Yerevan 2014}) 6. Nxd4 {[%emt 0:00:09]} Be7 {[%emt 0:00:07]} 7. Be3 {[%emt 0:04:23]} O-O {[%emt 0:03:00]} 8. Qd2 {[%emt 0:00:15]} d5 {[%emt 0:14:44]} 9. exd5 {[%emt 0:13:26]} Nxd5 {[%emt 0:00:08]} 10. Nxd5 $146 {[%emt 0:00:02]} Qxd5 {[%emt 0:00:12]} 11. Nb5 {[%emt 0:00:15]} Qe5 {[%emt 0:03:11]} 12. O-O-O {[%emt 0:08:11] [#]} (12. Bd3 $15) 12... Rd8 $1 {[%emt 0:04:22]} 13. Qc3 {[%emt 0:08:40]} Rxd1+ {[%emt 0:00:26]} 14. Kxd1 {[%emt 0:00:03]} Qd5+ {[%emt 0:01:14]} 15. Qd2 {[%emt 0:02:42]} Qxa2 {[%emt 0:01:24]} 16. Nxc7 {[%emt 0:00:49]} Rb8 {[%emt 0:04:43]} 17. Nd5 {[%emt 0:04:24]} Be6 {[%emt 0:02:38]} 18. Nxe7+ {[%emt 0:00:52]} Nxe7 {[%emt 0:00:16]} 19. b3 {[%emt 0:03:31]} Rc8 {[%emt 0:12:44]} 20. Bd3 {[%emt 0:02:21]} Bxb3 {[%emt 0:01:08]} 21. cxb3 {[%emt 0:02:22]} (21. Bd4 $17 {is a better defense.} Bd5 22. Re1) 21... Qa1+ {[%emt 0:00:23]} 22. Ke2 {[%emt 0:00:02]} Qxh1 {[%emt 0:00:14]} 23. Qb4 {[%emt 0:00:35]} Nd5 {[%emt 0:04:51]} 24. Qxb7 {[%emt 0:00:53]} Rd8 {[%emt 0:00:23]} 25. Be4 {[%emt 0:23:00]} Nc3+ {[%emt 0:01:16]} 26. Kf3 {[%emt 0:01:09]} Qd1+ {[%emt 0:06:47]} 27. Kg3 {[%emt 0:03:40]} Nxe4+ {[%emt 0:02:19]} 28. Qxe4 {[%emt 0:00:05]} Qxb3 {[%emt 0:00:21]} 29. Kh2 {[%emt 0:02:16]} a5 {[%emt 0:00:48]} 30. Qe7 $19 {[%emt 0:02:37]} Qd5 {[%emt 0:00:32]} 31. Bb6 {[%emt 0:00:48]} Ra8 {[%emt 0:00:10]} 32. f4 {[%emt 0:01:01]} a4 {[%emt 0:00:09]} 33. Bc5 {[%emt 0:00:06]} h6 {[%emt 0:00:28]} 34. Bd6 {[%emt 0:01:17]} Rc8 {[%emt 0:01:02]} 0-1

[Event "SVK ECo-C Extraliga 2018-19"]
[Site "Slovakia"]
[Date "2018.11.10"]
[Round "1"]
[White "Pcola, Jaroslav"]
[Black "Zvarik, Martin"]
[Result "1/2-1/2"]
[ECO "C50"]
[WhiteElo "2113"]
[BlackElo "2329"]
[Annotator "NA"]
[PlyCount "69"]
[EventDate "2018.11.10"]
[EventType "team-tourn"]
[EventCountry "SVK"]
[SourceTitle "playchess.com"]
[Source "ChessBase"]
[SourceQuality "1"]
[WhiteTeam "Snina"]
[BlackTeam "Zilina"]
[TimeControl "40/5400+30:1800+30"]

1. e4 {[%emt 0:00:00]} e5 {[%emt 0:00:00]} 2. Nf3 {[%emt 0:00:00]} Nc6 {[%emt 0:00:14]} 3. Bc4 {[%emt 0:00:24]} Be7 {[%emt 0:00:41]} 4. O-O {[%emt 0:01:24]} d6 {[%emt 0:04:45]} 5. c3 {[%emt 0:02:45]} Nf6 {[%emt 0:01:48]} 6. d3 {[%emt 0:00:30]} O-O {[%emt 0:01:33]} 7. a4 {[%emt 0:04:05] LiveBook: 47 Games C55: Two Knights: 4 d3, 4 d4 exd4 5 e5 and Max Lange Attack} (7. Bb3 Na5 8. Bc2 c5 9. h3 Nc6 10. Re1 Qc7 11. Nbd2 Be6 12. Nf1 Nd7 13. Ng5 Bxg5 14. Bxg5 d5 15. exd5 Bxd5 16. Ne3 Be6 17. Qh5 Rfe8 18. b4 Nf8 19. bxc5 Qa5 20. d4 exd4 21. cxd4 Nxd4 22. Bf4 Nxc2 23. Nxc2 Qa4 {0-1 (23) Bortnyk,O (2588)-Wang,H (2712) Abu Dhabi 2016}) 7... Qe8 {[%emt 0:11:17]} 8. Re1 $146 {[%emt 0:07:37]} ({Predecessor:} 8. Qb3 Nd7 9. Be3 Kh8 10. Nbd2 Bf6 11. Rfe1 Nd8 12. d4 Ne6 13. Nf1 Rg8 14. Ng3 Ndf8 {1-0 (28) Najer,E (2606)-Odinokov,N (2325) Sochi 2004}) 8... Bd8 {[%emt 0:16:53]} 9. a5 {[%emt 0:05:41]} Ne7 {[%emt 0:04:04]} 10. Nbd2 {[%emt 0:06:07]} c6 {[%emt 0:07:16]} 11. Nf1 {[%emt 0:02:06]} Kh8 {[%emt 0:10:22]} 12. Bb3 {[%emt 0:09:39]} Bc7 {[%emt 0:01:39]} 13. Ng3 {[%emt 0:07:01]} Nfg8 {[%emt 0:09:35]} (13... Qd8 $14) 14. d4 {[%emt 0:04:29]} Ng6 {[%emt 0:02:40]} 15. dxe5 {[%emt 0:09:25]} dxe5 {[%emt 0:04:34]} 16. Bc4 {[%emt 0:04:07]} Nf4 {[%emt 0:05:25]} (16... Bg4 $14) 17. Qb3 {[%emt 0:06:29]} Qe7 {[%emt 0:01:33]} (17... Nh6 $14) 18. Be3 {[%emt 0:08:37]} Nh6 {[%emt 0:03:13]} 19. Qa3 {[%emt 0:06:34]} Bd6 {[%emt 0:00:53]} 20. b4 {[%emt 0:00:43]} Ng4 {[%emt 0:02:06]} 21. Bc5 {[%emt 0:02:50]} Bxc5 {[%emt 0:03:26]} 22. bxc5 {[%emt 0:00:02]} f5 {[%emt 0:01:07]} 23. h3 {[%emt 0:01:07]} fxe4 {[%emt 0:01:36]} 24. Rxe4 {[%emt 0:01:03]} Nxh3+ {[%emt 0:00:56]} 25. gxh3 {[%emt 0:00:28]} Rxf3 {[%emt 0:00:24]} 26. hxg4 {[%emt 0:01:29]} Qh4 {[%emt 0:00:29]} 27. Bf1 {[%emt 0:05:10]} Bxg4 {[%emt 0:02:50]} 28. Bg2 {[%emt 0:00:11]} Rxf2 {[%emt 0:00:23]} 29. Kxf2 {[%emt 0:02:15]} Qh2 $18 {[%emt 0:00:22]} (29... Rf8+ 30. Kg1 Qxg3) 30. Rxg4 {[%emt 0:01:58]} Rf8+ {[%emt 0:00:01]} 31. Ke3 {[%emt 0:00:40]} Qxg2 {[%emt 0:00:06]} 32. Rf1 {[%emt 0:00:31]} Rxf1 {[%emt 0:00:11]} 33. Nxf1 {[%emt 0:00:02]} Qxg4 {[%emt 0:00:05]} 34. Qb3 {[%emt 0:00:55]} Qg1+ {[%emt 0:02:26]} 35. Ke4 1/2-1/2

[Event "SVK ECo-C Extraliga 2018-19"]
[Site "Slovakia"]
[Date "2018.11.10"]
[Round "1"]
[White "Hanko, Pavol"]
[Black "Federic, Jozef"]
[Result "1-0"]
[ECO "D58"]
[WhiteElo "2086"]
[BlackElo "2213"]
[Annotator "NA"]
[PlyCount "259"]
[EventDate "2018.11.10"]
[EventType "team-tourn"]
[EventCountry "SVK"]
[SourceTitle "playchess.com"]
[Source "ChessBase"]
[SourceQuality "1"]
[WhiteTeam "Dunajov"]
[BlackTeam "Modra"]
[TimeControl "40/5400+30:1800+30"]

1. d4 {[%emt 0:00:14]} d5 {[%emt 0:00:00]} 2. Nf3 {[%emt 0:00:18]} Nf6 {[%emt 0:00:00]} 3. c4 {[%emt 0:00:25]} e6 {[%emt 0:00:21]} 4. Bg5 {[%emt 0:00:54]} Be7 {[%emt 0:01:35]} 5. e3 {[%emt 0:00:27]} O-O {[%emt 0:00:42]} 6. Nc3 {[%emt 0:00:18]} h6 {[%emt 0:02:16]} 7. Bh4 {[%emt 0:02:08]} b6 {[%emt 0:00:47]} 8. Be2 {[%emt 0:01:58]} Bb7 {[%emt 0:04:47]} 9. Bxf6 {[%emt 0:04:02]} Bxf6 {[%emt 0:01:59]} 10. cxd5 {[%emt 0:00:32]} exd5 {[%emt 0:00:14]} 11. b4 {[%emt 0:01:46]} c5 {[%emt 0:08:53]} 12. bxc5 {[%emt 0:01:23]} bxc5 {[%emt 0:00:11]} 13. Rb1 {[%emt 0:00:58]} Bc6 {[%emt 0:08:46] D58: Queen's Gambit Declined: Tartakower Defence} 14. O-O {[%emt 0:01:36] LiveBook: 88 Games} Qa5 {[%emt 0:07:19]} (14... Nd7 15. Bb5 Qc7 16. Qd2 Rab8 17. Bxc6 Qxc6 18. dxc5 Bxc3 19. Qxc3 Qxc5 20. Qxc5 Nxc5 21. Nd4 Rfc8 22. g3 Ne4 23. Rb3 Nd2 24. Rxb8 Rxb8 {½-½ (47) Izoria,Z (2599)-Onischuk,A (2672) Saint Louis 2018}) 15. Qd2 {[%emt 0:06:42]} c4 {[%emt 0:13:19]} 16. e4 $1 $146 {[%emt 0:18:09]} ({Predecessor:} 16. Rfc1 Nd7 17. e4 dxe4 18. Nxe4 Qf5 19. Nd6 Qg6 20. Nxc4 Be4 21. Rb3 Bxf3 22. Bxf3 {1-0 (49) Hanko,P (2179)-Hacik,R (2176) Slovakia 2011}) 16... dxe4 {[%emt 0:02:34] [#]} 17. Nxe4 $1 {[%emt 0:00:21]} Bd8 {[%emt 0:00:43]} 18. Nc3 {[%emt 0:02:18]} ({White should play} 18. Qe3 $16) 18... Na6 {[%emt 0:06:26]} (18... Bf6 $11) 19. Ne5 {[%emt 0:04:34]} Rc8 {[%emt 0:07:28]} 20. Nxc4 {[%emt 0:04:25]} ({White should play} 20. Bxc4 $18 Bf6 21. Rfe1) 20... Qc7 {[%emt 0:00:53]} (20... Qg5 $16 21. Ne3 Qa5) 21. d5 {[%emt 0:12:53]} (21. Ne5 $18 Ba8 22. Rfc1 (22. Bxa6 Qxc3 23. Qe2 Rc7 $16)) 21... Ba8 {[%emt 0:00:44]} 22. Nb5 {[%emt 0:08:43]} Qc5 {[%emt 0:05:54]} 23. Ne3 {[%emt 0:01:16]} Bg5 {[%emt 0:02:25]} 24. Rfd1 {[%emt 0:07:21]} Rcd8 {[%emt 0:06:29]} 25. Nc3 {[%emt 0:02:22]} (25. Bf3 $16) 25... Nc7 {[%emt 0:01:42]} 26. Bf3 {[%emt 0:00:20]} Qa5 {[%emt 0:04:24]} 27. Nb5 {[%emt 0:03:28]} Qb6 {[%emt 0:02:19]} 28. Qd4 $2 {[%emt 0:01:36]} (28. Nxc7 $16 Qxc7 29. d6) 28... Bxe3 {[%emt 0:01:43]} 29. fxe3 {[%emt 0:04:15]} Nxd5 {[%emt 0:00:23]} 30. Nxa7 {[%emt 0:02:32]} Qxd4 {[%emt 0:00:07]} 31. Rxd4 {[%emt 0:00:16]} Nxe3 {[%emt 0:00:19]} 32. Rxd8 {[%emt 0:00:40]} Rxd8 {[%emt 0:00:05]} 33. Nc6 {[%emt 0:00:20]} Re8 {[%emt 0:06:26]} 34. a4 {[%emt 0:00:10]} Nc4 {[%emt 0:01:04]} 35. Rd1 {[%emt 0:02:29]} Bxc6 {[%emt 0:01:28]} 36. Bxc6 {[%emt 0:00:13]} Re5 {[%emt 0:00:30]} 37. Bb5 {[%emt 0:01:21]} Na5 {[%emt 0:00:22]} 38. Kf2 {[%emt 0:00:10]} f5 {[%emt 0:01:28]} 39. Rd8+ {[%emt 0:00:20]} Kh7 {[%emt 0:00:01]} 40. Ra8 {[%emt 0:01:35]} Nb3 {[%emt 0:00:22]} 41. Bd3 {[%emt 0:03:49]} h5 {[%emt 0:06:30]} 42. Rb8 {[%emt 0:01:20]} Nd4 {[%emt 0:01:54]} 43. Rb4 {[%emt 0:00:54]} Ne6 {[%emt 0:01:27]} 44. Rb5 {[%emt 0:05:45]} Nc5 {[%emt 0:00:08]} 45. Bc2 {[%emt 0:01:49]} Kg6 {[%emt 0:00:38]} 46. h4 {[%emt 0:01:23]} Kf6 {[%emt 0:00:18]} 47. Kf3 {[%emt 0:01:37]} Rd5 {[%emt 0:07:29]} 48. Rb6+ {[%emt 0:03:20]} Ke5 {[%emt 0:00:19]} 49. Rg6 {[%emt 0:01:41]} Rd2 {[%emt 0:02:51]} 50. Bxf5 {[%emt 0:01:31]} Nxa4 {[%emt 0:00:15]} 51. Bh3 {[%emt 0:00:40]} Rd3+ {[%emt 0:01:07]} 52. Ke2 {[%emt 0:00:43]} Rd4 {[%emt 0:02:05]} 53. Rg5+ $11 {[%emt 0:01:07]} Kf6 {[%emt 0:00:20]} 54. Rxh5 {[%emt 0:00:54]} Re4+ {[%emt 0:03:41]} 55. Kf3 {[%emt 0:00:19]} Re5 {[%emt 0:00:06]} 56. Rh8 {[%emt 0:00:20]} Nc5 {[%emt 0:00:21]} 57. Ra8 {[%emt 0:00:15]} Nd3 {[%emt 0:00:50]} 58. Ra6+ {[%emt 0:00:26]} Kf7 {[%emt 0:00:13]} 59. g3 {[%emt 0:00:37]} Ne1+ {[%emt 0:02:48]} 60. Kg4 {[%emt 0:01:15]} Nd3 {[%emt 0:00:19]} 61. Bf1 {[%emt 0:00:59]} Nc5 {[%emt 0:00:52]} 62. Rc6 {[%emt 0:01:44]} Ne4 {[%emt 0:01:18]} 63. Bc4+ {[%emt 0:03:35]} Ke8 {[%emt 0:00:21]} 64. Kf4 {[%emt 0:00:31]} Re7 {[%emt 0:00:10]} 65. Bd3 {[%emt 0:01:54]} Nf6 {[%emt 0:00:39]} 66. g4 {[%emt 0:00:54]} Ra7 {[%emt 0:02:02]} 67. Kg5 {[%emt 0:01:21]} Rd7 {[%emt 0:03:09]} 68. Bf5 {[%emt 0:00:25]} Rd4 {[%emt 0:00:24]} 69. h5 {[%emt 0:00:22]} Nd5 {[%emt 0:01:18]} 70. Ra6 {[%emt 0:00:41]} Ne7 {[%emt 0:01:29]} 71. Be6 {[%emt 0:01:58]} Kd8 {[%emt 0:00:41]} 72. h6 {[%emt 0:02:51]} gxh6+ {[%emt 0:00:02]} 73. Kxh6 {[%emt 0:00:08]} Rd2 {[%emt 0:00:42]} 74. Kg5 {[%emt 0:00:28]} Rf2 {[%emt 0:00:54]} 75. Bf5 {[%emt 0:00:19]} Ke8 {[%emt 0:00:55]} 76. Be6 {[%emt 0:00:51]} Kf8 {[%emt 0:00:34]} 77. Ra8+ {[%emt 0:00:45]} Kg7 {[%emt 0:00:01]} 78. Re8 {[%emt 0:00:11]} Nc6 {[%emt 0:00:10]} 79. Rg8+ {[%emt 0:00:20]} Kh7 {[%emt 0:00:02]} 80. Rc8 {[%emt 0:00:11]} Ne5 {[%emt 0:00:29]} 81. Rc7+ {[%emt 0:01:08]} Kh8 {[%emt 0:00:03]} 82. Bf5 {[%emt 0:00:26]} Kg8 {[%emt 0:00:53]} 83. Re7 {[%emt 0:00:43]} Nxg4 {[%emt 0:01:44]} 84. Bxg4 {[%emt 0:00:08]} Kf8 {[%emt 0:00:15]} 85. Re1 {[%emt 0:00:09]} Kg7 {[%emt 0:00:25]} 86. Ra1 {[%emt 0:00:12]} Rf7 {[%emt 0:00:15]} 87. Be6 {[%emt 0:00:25]} Rc7 {[%emt 0:00:28]} 88. Ra8 {[%emt 0:00:39]} Rc5+ {[%emt 0:00:19]} 89. Bf5 {[%emt 0:00:08]} Rc7 {[%emt 0:00:03]} 90. Ra6 {[%emt 0:00:10]} Kf8 {[%emt 0:00:47]} 91. Rh6 {[%emt 0:00:20]} Ke7 {[%emt 0:00:18]} 92. Re6+ {[%emt 0:00:16]} Kd8 {[%emt 0:00:28]} 93. Kf6 {[%emt 0:00:17]} Rc5 {[%emt 0:00:26]} 94. Ra6 {[%emt 0:00:34]} Kc7 {[%emt 0:00:07]} 95. Ra2 {[%emt 0:00:24]} Kb6 {[%emt 0:00:13]} 96. Bd7 {[%emt 0:00:28]} Rc1 {[%emt 0:00:19]} 97. Rd2 {[%emt 0:00:41]} Re1 {[%emt 0:00:15]} 98. Be6 {[%emt 0:00:16]} Kc5 {[%emt 0:00:07]} 99. Ke7 {[%emt 0:00:26]} Re3 {[%emt 0:00:25]} 100. Rd5+ {[%emt 0:00:18]} Kb4 {[%emt 0:00:06]} 101. Kd6 {[%emt 0:00:07]} Kc3 {[%emt 0:00:11]} 102. Bf5 {[%emt 0:00:35]} Kb4 {[%emt 0:00:35]} 103. Rd4+ {[%emt 0:00:26]} Kc3 {[%emt 0:00:10]} 104. Kd5 {[%emt 0:00:23]} Rf3 {[%emt 0:00:54]} 105. Be4 {[%emt 0:00:26]} Rg3 {[%emt 0:00:34]} 106. Rc4+ {[%emt 0:00:23]} Kd2 {[%emt 0:00:42]} 107. Kd4 {[%emt 0:00:13]} Ra3 {[%emt 0:00:14]} 108. Rc2+ {[%emt 0:00:48]} Ke1 {[%emt 0:00:54]} 109. Bd3 {[%emt 0:00:16]} Ra7 {[%emt 0:00:56]} 110. Ke3 {[%emt 0:01:13]} Kd1 {[%emt 0:00:40]} 111. Rd2+ {[%emt 0:01:16]} Kc1 {[%emt 0:00:14]} 112. Rc2+ {[%emt 0:00:27]} Kd1 {[%emt 0:00:01]} 113. Rb2 {[%emt 0:00:16]} Rc7 {[%emt 0:00:29]} 114. Kd4 {[%emt 0:01:50]} Kc1 {[%emt 0:01:03]} 115. Rh2 {[%emt 0:00:47]} Ra7 {[%emt 0:01:11]} 116. Bc4 {[%emt 0:01:36]} Ra3 {[%emt 0:00:32]} 117. Rg2 {[%emt 0:00:26]} Kb1 {[%emt 0:00:58]} 118. Kc5 {[%emt 0:00:35]} Kc1 {[%emt 0:00:21]} 119. Kb4 {[%emt 0:00:18]} Re3 {[%emt 0:00:19]} 120. Bd5 {[%emt 0:01:12]} Rd3 {[%emt 0:00:42]} 121. Kc4 {[%emt 0:00:15]} Rd2 {[%emt 0:00:17]} 122. Rg8 {[%emt 0:01:36]} Rh2 {[%emt 0:00:15]} 123. Be4 {[%emt 0:00:07]} Rf2 {[%emt 0:00:58]} 124. Kc3 {[%emt 0:00:33]} Rc2+ {[%emt 0:00:07]} 125. Kd3 {[%emt 0:00:24]} Rd2+ {[%emt 0:00:11]} 126. Ke3 {[%emt 0:00:06]} Rd1 {[%emt 0:02:12]} 127. Rb8 {[%emt 0:01:05]} Re1+ {[%emt 0:00:05]} 128. Kd3 {[%emt 0:00:06]} Rg1 {[%emt 0:02:18]} 129. Kc3 {[%emt 0:00:24]} Kd1 {[%emt 0:00:02]} 130. Rb1+ {[%emt 0:00:13]} 1-0

[Event "SVK ECo-C Extraliga 2018-19"]
[Site "Slovakia"]
[Date "2018.11.11"]
[Round "2"]
[White "Miton, Kamil"]
[Black "Vykouk, Jan"]
[Result "1/2-1/2"]
[ECO "C02"]
[WhiteElo "2590"]
[BlackElo "2423"]
[Annotator "ChessBase"]
[PlyCount "67"]
[EventDate "2018.11.10"]
[EventType "team-tourn"]
[EventCountry "SVK"]
[SourceTitle "playchess.com"]
[Source "ChessBase"]
[SourceQuality "1"]
[WhiteTeam "Dunajov"]
[BlackTeam "Osuske"]
[TimeControl "40/5400+30:1800+30"]

1. d4 {[%emt 0:00:00]} e6 {[%emt 0:00:00]} 2. e4 {[%emt 0:00:28]} d5 {[%emt 0:00:00]} 3. e5 {[%emt 0:00:04]} c5 {[%emt 0:00:00]} 4. c3 {[%emt 0:00:05]} Nc6 {[%emt 0:00:00]} 5. Nf3 {[%emt 0:00:10]} Qb6 {[%emt 0:00:11]} 6. a3 {[%emt 0:00:14]} cxd4 {[%emt 0:04:32]} 7. cxd4 {[%emt 0:00:55]} Nge7 {[%emt 0:00:16]} 8. Nc3 {[%emt 0:07:22]} Bd7 {[%emt 0:01:05]} 9. Na4 {[%emt 0:05:07]} Qc7 {[%emt 0:00:16]} 10. Bd3 {[%emt 0:07:51]} Nf5 {[%emt 0:07:05]} 11. Bxf5 {[%emt 0:00:36]} exf5 {[%emt 0:00:06]} 12. O-O {[%emt 0:00:06]} Be6 {[%emt 0:00:34]} 13. b4 {[%emt 0:05:31]} h6 {[%emt 0:00:52]} 14. Bd2 {[%emt 0:01:40]} Be7 {[%emt 0:01:15]} 15. Rc1 {[%emt 0:01:20]} a6 {[%emt 0:00:36]} 16. Ne1 {[%emt 0:04:55]} O-O {[%emt 0:00:42]} 17. Nd3 {[%emt 0:00:12]} Rfc8 {[%emt 0:01:11]} 18. Nf4 {[%emt 0:05:30]} Qd8 {[%emt 0:02:03]} 19. Be3 {[%emt 0:04:31]} g5 {[%emt 0:09:31]} 20. Nxe6 {[%emt 0:07:27]} fxe6 {[%emt 0:00:05]} 21. Qh5 {[%emt 0:00:16]} Kg7 {[%emt 0:00:17]} 22. f4 {[%emt 0:00:30]} Qe8 {[%emt 0:02:12]} 23. Qd1 {[%emt 0:01:55]} Rc7 {[%emt 0:01:28]} 24. fxg5 {[%emt 0:19:13]} hxg5 {[%emt 0:00:29]} 25. Rc3 {[%emt 0:02:33]} Qg6 {[%emt 0:02:15]} 26. Nc5 {[%emt 0:00:52]} Bxc5 {[%emt 0:00:28]} 27. bxc5 {[%emt 0:00:23]} g4 {[%emt 0:04:42]} 28. Qd2 {[%emt 0:01:51]} Rh8 {[%emt 0:04:47]} 29. Rb3 {[%emt 0:02:12]} Rh7 {[%emt 0:00:58]} 30. Bg5 {[%emt 0:01:29]} Kf8 {[%emt 0:00:43]} 31. Bf6 {[%emt 0:02:57]} Qh6 {[%emt 0:00:56]} 32. Qxh6+ {[%emt 0:00:20]} Rxh6 {[%emt 0:00:04]} 33. Rfb1 {[%emt 0:05:18]} Rhh7 {[%emt 0:01:45]} 34. Rd3 {[%emt 0:00:41]} 1/2-1/2

[Event "SVK ECo-C Extraliga 2018-19"]
[Site "Slovakia"]
[Date "2018.11.11"]
[Round "2"]
[White "Michalik, Peter"]
[Black "Motuz, Karol"]
[Result "1/2-1/2"]
[ECO "C00"]
[WhiteElo "2564"]
[BlackElo "2367"]
[Annotator "ChessBase"]
[PlyCount "40"]
[EventDate "2018.11.10"]
[EventType "team-tourn"]
[EventCountry "SVK"]
[SourceTitle "playchess.com"]
[Source "ChessBase"]
[SourceQuality "1"]
[WhiteTeam "Modra"]
[BlackTeam "Dubnica"]
[TimeControl "40/5400+30:1800+30"]

1. e4 {[%emt 0:00:00]} e6 {[%emt 0:00:00]} 2. Qe2 {[%emt 0:00:00]} c5 {[%emt 0:01:13]} 3. Nf3 {[%emt 0:00:00]} Nc6 {[%emt 0:00:17]} 4. g3 {[%emt 0:00:01]} g6 {[%emt 0:02:28]} 5. Na3 {[%emt 0:04:34]} Bg7 {[%emt 0:07:00]} 6. Bg2 {[%emt 0:06:58]} Nge7 {[%emt 0:01:40]} 7. O-O {[%emt 0:00:30]} O-O {[%emt 0:05:32]} 8. c3 {[%emt 0:01:16]} d5 {[%emt 0:07:32]} 9. e5 {[%emt 0:00:08]} Nf5 {[%emt 0:02:49]} 10. d3 {[%emt 0:01:57]} h6 {[%emt 0:01:42]} 11. Nc2 {[%emt 0:06:53]} b6 {[%emt 0:03:37]} 12. b4 {[%emt 0:05:24]} cxb4 {[%emt 0:17:51]} 13. cxb4 {[%emt 0:00:05]} b5 {[%emt 0:02:29]} 14. Bb2 {[%emt 0:11:34]} Bd7 {[%emt 0:01:24]} 15. Rac1 {[%emt 0:06:22]} a5 {[%emt 0:02:38]} 16. Bc3 {[%emt 0:02:42]} Qe7 {[%emt 0:04:41]} 17. g4 {[%emt 0:03:29]} axb4 {[%emt 0:08:57]} 18. Be1 {[%emt 0:06:08]} Nh4 {[%emt 0:07:04]} 19. Nxh4 {[%emt 0:00:04]} Qxh4 {[%emt 0:00:01]} 20. Nxb4 {[%emt 0:00:11]} Nd4 {[%emt 0:10:25]} 1/2-1/2